bitfinex/quotes_BTCUSD_20241025
["timestamp","ask_amount","ask_price","bid_price","bid_amount"]
[1729837464231,0.04422717,67746.0,67744.0,0.19009092]
[1729837464432,0.04422717,67746.0,67745.0,0.147612]
[1729837466609,0.001648,67746.0,67745.0,0.147612]
[1729837482299,0.04587509,67746.0,67745.0,0.147612]
[1729837486648,0.04587756,67746.0,67745.0,0.147612]
[1729837489227,0.04587756,67746.0,67744.0,0.33770392]
[1729837489476,0.04423163,67745.0,67744.0,0.33770392]
[1729837496186,0.001648,67746.0,67744.0,0.33770392]
[1729837496393,0.04422185,67745.0,67744.0,0.33770392]
[1729837500644,0.04586968,67746.0,67744.0,0.33770492]
[1729837500901,0.04586968,67746.0,67745.0,0.147612]
[1729837504545,0.0458694,67746.0,67745.0,0.147612]
[1729837505040,0.001648,67746.0,67745.0,0.147612]
[1729837505586,0.04587161,67746.0,67745.0,0.147612]
[1729837506035,0.001648,67746.0,67745.0,0.147612]
[1729837506441,0.04587125,67746.0,67745.0,0.147612]
[1729837507037,0.04587146,67746.0,67745.0,0.147612]
[1729837507520,0.001648,67746.0,67744.0,0.19009092]
[1729837507724,0.04422299,67745.0,67744.0,0.33770492]
[1729837507954,0.04422299,67745.0,67741.0,0.000824]
[1729837507955,0.147616,67743.0,67741.0,0.000824]
[1729837508383,0.39929642,67743.0,67741.0,0.000824]
[1729837508589,0.31085361,67743.0,67741.0,0.000824]
[1729837509587,0.21390417,67743.0,67741.0,0.000824]
[1729837512507,0.147616,67743.0,67741.0,0.000824]
[1729837513583,0.21390317,67744.0,67741.0,0.000824]
[1729837514000,0.21387036,67744.0,67741.0,0.000824]
[1729837515089,0.04416829,67743.0,67741.0,0.000824]
[1729837516585,0.04416829,67744.0,67741.0,0.000824]
[1729837518754,0.04416123,67744.0,67741.0,0.000824]
[1729837519883,0.04416123,67744.0,67741.0,0.148445]
[1729837521897,0.04416123,67744.0,67741.0,0.000824]
[1729837522105,0.04416123,67744.0,67741.0,0.148444]
[1729837525093,0.19177623,67744.0,67741.0,0.000824]
[1729837525315,0.04416123,67744.0,67741.0,0.148443]
[1729837526000,0.04416123,67744.0,67742.0,0.148442]
[1729837526436,0.04416123,67744.0,67742.0,0.000824]
[1729837526683,0.04416123,67744.0,67743.0,0.147616]
[1729837527240,0.04416123,67744.0,67742.0,0.080824]
[1729837527460,0.04416123,67744.0,67742.0,0.22844]
[1729837528129,0.04415005,67744.0,67742.0,0.22844]
[1729837528557,0.04415005,67744.0,67742.0,0.080824]
[1729837529164,0.04414991,67744.0,67742.0,0.080824]
[1729837529566,0.04414991,67744.0,67742.0,0.228442]
[1729837530416,0.04414991,67744.0,67743.0,0.147616]
[1729837530917,0.04414991,67744.0,67743.0,0.25161972]
[1729837531149,0.04579791,67745.0,67744.0,0.147614]
[1729837533653,0.04579791,67745.0,67743.0,0.10400372]
[1729837534009,0.04579791,67745.0,67743.0,0.25161972]
[1729837535907,0.04579791,67745.0,67742.0,0.228441]
[1729837537490,0.04579791,67745.0,67742.0,0.080824]
[1729837537684,0.04579791,67745.0,67742.0,0.228442]
[1729837539652,0.19340991,67745.0,67742.0,0.080824]
[1729837539851,0.04579791,67745.0,67742.0,0.080824]
[1729837541564,0.04414991,67744.0,67742.0,0.080824]
[1729837542383,0.19176491,67744.0,67742.0,0.080824]
[1729837543158,0.04414991,67744.0,67742.0,0.080824]
[1729837543566,0.147616,67743.0,67742.0,0.080824]
[1729837543778,0.147616,67743.0,67742.0,0.000824]
[1729837543979,0.5045946,67743.0,67742.0,0.000824]
[1729837544203,0.66760204,67743.0,67742.0,0.000824]
[1729837544412,0.55722725,67743.0,67742.0,0.000824]
[1729837545388,0.63622725,67743.0,67742.0,0.000824]
[1729837547205,0.63615125,67743.0,67742.0,0.000824]
[1729837551110,0.55715125,67743.0,67742.0,0.000824]
[1729837555668,0.66746027,67743.0,67742.0,0.000824]
[1729837560390,0.27488846,67743.0,67742.0,0.000824]
[1729837560595,0.16457944,67743.0,67742.0,0.43304572]
[1729837560805,0.001648,67743.0,67742.0,0.181424]
[1729837561005,0.001648,67743.0,67742.0,0.329042]
[1729837561215,0.001648,67743.0,67742.0,0.181424]
[1729837561611,0.149264,67743.0,67742.0,0.082024]
[1729837562496,0.19338474,67743.0,67742.0,0.082024]
[1729837566012,0.19338474,67743.0,67742.0,0.000824]
[1729837568897,0.04576874,67743.0,67742.0,0.000824]
[1729837569563,0.001648,67743.0,67742.0,0.000824]
[1729837569779,0.19338584,67743.0,67742.0,0.000824]
[1729837571040,0.04576984,67743.0,67742.0,0.000824]
[1729837573099,0.04576984,67743.0,67742.0,0.328342]
[1729837574623,0.04577315,67743.0,67742.0,0.328342]
[1729837575734,0.001648,67743.0,67742.0,0.328342]
[1729837577347,0.001648,67743.0,67742.0,0.180724]
[1729837583181,0.001648,67743.0,67742.0,0.328342]
[1729837589753,0.001648,67743.0,67742.0,0.65274759]
[1729837589968,0.001648,67743.0,67742.0,0.9102514]
[1729837590180,0.001648,67743.0,67742.0,0.69484953]
[1729837590627,0.001648,67743.0,67742.0,0.69984953]
[1729837592535,0.001648,67743.0,67742.0,0.69784953]
[1729837594086,0.001648,67743.0,67742.0,0.69984953]
[1729837596750,0.001648,67749.0,67744.0,0.005]
[1729837596940,0.22040187,67757.0,67756.0,0.147588]
[1729837597210,0.22040187,67757.0,67756.0,0.57809181]
[1729837597411,0.22040187,67771.0,67758.0,0.0809]
[1729837597623,0.22040187,67759.0,67748.0,0.005]
[1729837597834,0.487415,67770.0,67756.0,0.147586]
[1729837598050,0.005,67768.0,67752.0,0.295194]
[1729837598274,0.14758,67760.0,67755.0,0.36799087]
[1729837598750,0.147584,67758.0,67753.0,0.00461396]
[1729837598962,0.295151,67762.0,67753.0,0.147594]
[1729837599183,0.147583,67759.0,67751.0,0.08221396]
[1729837599412,0.147583,67759.0,67753.0,0.147594]
[1729837599625,0.147583,67759.0,67754.0,0.147591]
[1729837599856,0.147583,67759.0,67755.0,0.147589]
[1729837600516,0.10400372,67761.0,67746.0,0.467419]
[1729837600768,0.005,67762.0,67752.0,0.22040187]
[1729837601033,0.005,67762.0,67751.0,0.147598]
[1729837601034,0.147591,67755.0,67751.0,0.147598]
[1729837601722,0.147588,67756.0,67751.0,0.147598]
[1729837601946,0.147591,67755.0,67751.0,0.147598]
[1729837602617,0.442761,67757.0,67751.0,0.147598]
[1729837602845,0.147591,67755.0,67750.0,0.1476]
[1729837603322,0.147591,67755.0,67751.0,0.147598]
[1729837603555,0.442762,67757.0,67751.0,0.147598]
[1729837603761,0.147592,67755.0,67749.0,0.147601]
[1729837603912,0.147588,67756.0,67749.0,0.147601]
[1729837604124,0.147592,67755.0,67749.0,0.147601]
[1729837604334,0.147588,67756.0,67751.0,0.147599]
[1729837605085,0.147593,67754.0,67749.0,0.147603]
[1729837605641,0.147593,67754.0,67748.0,0.295211]
[1729837605892,0.0961,67753.0,67747.0,0.295216]
[1729837606163,0.0961,67753.0,67746.0,0.01050963]
[1729837606375,0.147597,67752.0,67747.0,0.147606]
[1729837606562,0.147599,67751.0,67747.0,0.147606]
[1729837606965,0.243696,67753.0,67748.0,0.147605]
[1729837607208,0.243696,67753.0,67744.0,0.295229]
[1729837607209,0.243696,67753.0,67749.0,0.147602]
[1729837607839,0.147597,67752.0,67748.0,0.147604]
[1729837608073,0.0961,67753.0,67748.0,0.147604]
[1729837608285,0.0961,67753.0,67749.0,0.147602]
[1729837608715,0.243695,67753.0,67749.0,0.147602]
[1729837609077,0.0961,67753.0,67748.0,0.147604]
[1729837609281,0.0961,67753.0,67746.0,0.00461468]
[1729837609512,0.147597,67752.0,67748.0,0.147605]
[1729837610161,0.0961,67753.0,67748.0,0.295211]
[1729837610364,0.391291,67753.0,67748.0,0.00461468]
[1729837610571,0.442791,67752.0,67746.0,0.15222368]
[1729837610783,0.147602,67750.0,67747.0,0.00461468]
[1729837611021,0.147602,67750.0,67748.0,0.00461468]
[1729837611207,0.147601,67750.0,67747.0,0.00461468]
[1729837611438,0.0961,67753.0,67748.0,0.00461468]
[1729837611643,0.147601,67751.0,67746.0,0.147608]
[1729837611845,0.147601,67751.0,67747.0,0.15222169]
[1729837612053,0.147601,67751.0,67748.0,0.00461469]
[1729837612259,0.147601,67751.0,67747.0,0.147607]
[1729837612485,0.0961,67753.0,67748.0,0.00461469]
[1729837612690,0.0961,67753.0,67749.0,0.00461469]
[1729837612911,0.0961,67753.0,67750.0,0.1476]
[1729837613362,0.243696,67753.0,67748.0,0.147605]
[1729837613565,0.243696,67753.0,67749.0,0.15221769]
[1729837613811,0.243696,67753.0,67749.0,0.147603]
[1729837614427,0.0961,67753.0,67748.0,0.295211]
[1729837614637,0.243694,67753.0,67749.0,0.15221769]
[1729837614874,0.243694,67753.0,67749.0,0.147603]
[1729837615066,0.391291,67753.0,67746.0,0.10400372]
[1729837615329,0.391291,67753.0,67747.0,0.00461469]
[1729837615578,0.147597,67752.0,67747.0,0.15222069]
[1729837615811,0.391291,67753.0,67748.0,0.00461469]
[1729837616025,0.391291,67753.0,67749.0,0.00461469]
[1729837616247,0.147597,67752.0,67747.0,0.147606]
[1729837616501,0.147597,67752.0,67748.0,0.00461469]
[1729837616721,0.147597,67752.0,67746.0,0.39922272]
[1729837616722,0.0961,67753.0,67749.0,0.15221669]
[1729837616966,0.0961,67753.0,67750.0,0.00461469]
[1729837617179,0.0961,67753.0,67749.0,0.147602]
[1729837617419,0.0961,67753.0,67750.0,0.00461469]
[1729837617668,0.0961,67753.0,67749.0,0.147602]
[1729837617669,0.097748,67753.0,67749.0,0.147602]
[1729837617921,0.097748,67753.0,67750.0,0.00461469]
[1729837618124,0.097748,67753.0,67749.0,0.147602]
[1729837618330,0.097748,67753.0,67750.0,0.00461469]
[1729837618535,0.097748,67753.0,67749.0,0.147602]
[1729837618742,0.097748,67753.0,67750.0,0.00461469]
[1729837618954,0.097748,67753.0,67749.0,0.147602]
[1729837619385,0.097748,67753.0,67750.0,0.00461469]
[1729837619592,0.097748,67753.0,67750.0,0.1476]
[1729837620001,0.097748,67753.0,67748.0,0.147603]
[1729837620222,0.097748,67753.0,67750.0,0.147601]
[1729837620447,0.097748,67753.0,67749.0,0.147603]
[1729837620652,0.147599,67751.0,67750.0,0.00461469]
[1729837620857,0.295194,67752.0,67750.0,0.00461469]
[1729837621105,0.147602,67750.0,67747.0,0.000824]
[1729837621768,0.39294,67753.0,67747.0,0.000824]
[1729837621971,0.540537,67753.0,67747.0,0.148431]
[1729837622361,0.147598,67752.0,67747.0,0.148431]
[1729837623233,0.1476,67751.0,67747.0,0.000824]
[1729837623437,0.147601,67750.0,67747.0,0.000824]
[1729837623640,0.147597,67752.0,67747.0,0.148431]
[1729837624263,0.147597,67752.0,67747.0,0.000824]
[1729837628092,0.295196,67752.0,67747.0,0.000824]
[1729837628319,0.28942149,67753.0,67747.0,0.000824]
[1729837629554,0.001648,67752.0,67747.0,0.000824]
[1729837629774,0.19332149,67752.0,67747.0,0.000824]
[1729837630003,0.147601,67750.0,67747.0,0.000824]
[1729837630652,0.147602,67750.0,67747.0,0.000824]
[1729837630883,0.147603,67750.0,67747.0,0.000824]
[1729837631116,0.48851649,67752.0,67747.0,0.000824]
[1729837631598,0.147599,67751.0,67747.0,0.000824]
[1729837632758,0.19332249,67752.0,67747.0,0.000824]
[1729837633691,0.04572449,67752.0,67747.0,0.000824]
[1729837634177,0.147599,67751.0,67747.0,0.000824]
[1729837634428,0.147604,67749.0,67747.0,0.000824]
[1729837634666,0.295199,67751.0,67747.0,0.000824]
[1729837634667,0.19167749,67750.0,67747.0,0.000824]
[1729837635659,0.04407649,67750.0,67747.0,0.000824]
[1729837638031,0.19167749,67750.0,67747.0,0.000824]
[1729837639791,0.04407649,67750.0,67747.0,0.000824]
[1729837641185,0.04572449,67750.0,67747.0,0.000824]
[1729837643316,0.04572449,67750.0,67748.0,0.0774]
[1729837643516,0.06776274,67750.0,67748.0,0.0774]
[1729837643841,0.06782161,67750.0,67748.0,0.0774]
[1729837644127,0.152605,67748.0,67747.0,0.000824]
[1729837644334,0.48895005,67748.0,67747.0,0.000824]
[1729837650531,0.51205537,67748.0,67747.0,0.000824]
[1729837653341,0.51184787,67748.0,67747.0,0.000824]
[1729837655282,0.62196879,67748.0,67747.0,0.000824]
[1729837655490,0.61996879,67748.0,67747.0,0.000824]
[1729837657442,0.61993402,67748.0,67747.0,0.000824]
[1729837657672,0.61992497,67748.0,67747.0,0.000824]
[1729837658108,0.61992663,67748.0,67747.0,0.000824]
[1729837667580,0.61993773,67748.0,67747.0,0.000824]
[1729837668708,0.72394145,67748.0,67747.0,0.000824]
[1729837668840,0.61381962,67748.0,67747.0,0.000824]
[1729837669247,0.61881962,67748.0,67747.0,0.000824]
[1729837673580,0.61381962,67748.0,67747.0,0.000824]
[1729837676316,0.61546762,67748.0,67747.0,0.000824]
[1729837680995,0.152616,67743.0,67742.0,0.000824]
[1729837681217,0.52912353,67743.0,67742.0,0.000824]
[1729837681467,0.69181737,67743.0,67742.0,0.000824]
[1729837681887,0.80181737,67743.0,67742.0,0.000824]
[1729837682095,0.84621881,67743.0,67742.0,0.000824]
[1729837682320,0.99496746,67743.0,67742.0,0.000824]
[1729837682532,0.84821881,67743.0,67742.0,0.000824]
[1729837682975,0.84621881,67743.0,67742.0,0.000824]
[1729837683387,0.384618,67742.0,67741.0,0.00055301]
[1729837683599,0.8908718,67742.0,67741.0,0.00055301]
[1729837684648,0.84647036,67742.0,67741.0,0.00055301]
[1729837684854,0.84631887,67742.0,67741.0,0.00055301]
[1729837685677,0.69768744,67742.0,67741.0,0.00055301]
[1729837686708,0.7150846,67742.0,67741.0,0.00055301]
[1729837689332,0.55251897,67742.0,67741.0,0.00055301]
[1729837689539,0.71505453,67742.0,67741.0,0.00055301]
[1729837695938,0.262638,67733.0,67728.0,0.000824]
[1729837696141,0.59867737,67733.0,67728.0,0.000824]
[1729837696544,0.59867737,67733.0,67732.0,0.000835]
[1729837698971,0.70868426,67733.0,67732.0,0.000835]
[1729837699237,0.59867737,67733.0,67732.0,0.000835]
[1729837703716,0.70863204,67733.0,67732.0,0.000835]
[1729837706363,0.59867737,67733.0,67732.0,0.000835]
[1729837706563,0.70863249,67733.0,67732.0,0.000835]
[1729837707330,0.59867737,67733.0,67732.0,0.000835]
[1729837710782,0.62178741,67733.0,67732.0,0.000835]
[1729837711027,0.18064,67732.0,67731.0,0.07812834]
[1729837711233,0.59865046,67732.0,67731.0,0.07812834]
[1729837713146,0.48867937,67732.0,67731.0,0.07702202]
[1729837716550,0.175647,67729.0,67728.0,0.000824]
[1729837716794,0.57671171,67729.0,67728.0,0.000824]
[1729837717408,0.48868637,67729.0,67728.0,0.000824]
[1729837717530,0.4886368,67729.0,67728.0,0.000824]
[1729837721061,0.32615081,67729.0,67728.0,0.000824]
[1729837725988,0.62129445,67729.0,67728.0,0.096524]
[1729837727828,0.48897086,67729.0,67728.0,0.096524]
[1729837733344,0.62135087,67729.0,67728.0,0.096524]
[1729837736446,0.62142336,67729.0,67728.0,0.096524]
[1729837737929,0.62142908,67729.0,67728.0,0.096524]
[1729837738179,0.44292527,67729.0,67728.0,0.176924]
[1729837738458,0.31053816,67729.0,67728.0,0.176924]
[1729837738675,0.42084954,67729.0,67728.0,0.176924]
[1729837739623,0.31053816,67729.0,67728.0,0.176924]
[1729837740771,0.42084954,67729.0,67728.0,0.176924]
[1729837741032,0.31053816,67729.0,67728.0,0.176924]
[1729837741737,0.42080864,67729.0,67728.0,0.176924]
[1729837742209,0.31053816,67729.0,67728.0,0.176924]
[1729837744153,0.48904197,67729.0,67728.0,0.081224]
[1729837749614,0.48896129,67729.0,67728.0,0.081224]
[1729837754492,0.48897572,67729.0,67728.0,0.081224]
[1729837756802,0.48397572,67729.0,67728.0,0.172524]
[1729837757635,0.31047191,67729.0,67728.0,0.172524]
[1729837762203,0.42073898,67729.0,67728.0,0.172524]
[1729837762406,0.31047191,67729.0,67728.0,0.172524]
[1729837762650,0.42073825,67729.0,67728.0,0.172524]
[1729837763283,0.31047191,67729.0,67728.0,0.172524]
[1729837764022,0.31046197,67729.0,67728.0,0.172524]
[1729837764881,0.4207297,67729.0,67728.0,0.172524]
[1729837768282,0.31046197,67729.0,67728.0,0.172524]
[1729837768499,0.16281497,67729.0,67728.0,0.172524]
[1729837768712,0.16281497,67729.0,67728.0,0.42417672]
[1729837768918,0.16281497,67729.0,67728.0,0.25247672]
[1729837769130,0.06616105,67729.0,67728.0,0.25247672]
[1729837769332,0.04410766,67729.0,67728.0,0.25247672]
[1729837769544,0.04410766,67730.0,67728.0,0.25247672]
[1729837769752,0.04410766,67730.0,67729.0,0.147647]
[1729837769956,0.04410766,67730.0,67729.0,0.320047]
[1729837770631,0.04575566,67731.0,67730.0,0.320045]
[1729837771468,0.04575566,67731.0,67730.0,0.1724]
[1729837773699,0.04575566,67731.0,67730.0,0.320045]
[1729837773887,0.001648,67731.0,67730.0,0.320045]
[1729837774427,0.001648,67731.0,67730.0,0.33082091]
[1729837789332,0.001648,67731.0,67730.0,0.18317591]
[1729837789537,0.14929,67731.0,67730.0,0.18317591]
[1729837790637,0.001648,67731.0,67730.0,0.18317591]
[1729837790801,0.14929,67731.0,67730.0,0.18317591]
[1729837791002,0.001648,67731.0,67730.0,0.18317591]
[1729837792015,0.14929,67731.0,67730.0,0.18317591]
[1729837793373,0.001648,67731.0,67730.0,0.18317591]
[1729837794504,0.001648,67731.0,67730.0,0.18399991]
[1729837797164,0.001648,67731.0,67730.0,0.33164491]
[1729837811918,0.04575865,67731.0,67730.0,0.33164491]
[1729837812320,0.04576189,67731.0,67730.0,0.33164491]
[1729837813494,0.06781884,67732.0,67730.0,0.18399991]
[1729837813703,0.06781884,67732.0,67730.0,0.47928891]
[1729837813912,0.001648,67732.0,67731.0,0.147642]
[1729837816369,0.06281884,67733.0,67732.0,0.14764]
[1729837816995,0.08835275,67734.0,67732.0,0.14764]
[1729837817421,0.08835275,67734.0,67730.0,0.47928891]
[1729837817843,0.08835275,67734.0,67732.0,0.14764]
[1729837818620,0.08835275,67734.0,67731.0,0.147642]
[1729837818842,0.08835275,67734.0,67732.0,0.14764]
[1729837819045,0.25142572,67734.0,67732.0,0.147638]
[1729837819248,0.08835275,67734.0,67732.0,0.147638]
[1729837819503,0.08835275,67734.0,67733.0,0.147638]
[1729837819671,0.25146524,67734.0,67731.0,0.295285]
[1729837819874,0.25146524,67734.0,67730.0,0.18399991]
[1729837819875,0.23598975,67734.0,67730.0,0.18399991]
[1729837820129,0.08835275,67734.0,67731.0,0.147641]
[1729837820276,0.08835275,67734.0,67733.0,0.147638]
[1729837820659,0.08835275,67734.0,67732.0,0.14764]
[1729837821280,0.08835275,67734.0,67733.0,0.147638]
[1729837821672,0.08835275,67734.0,67731.0,0.295282]
[1729837821868,0.08838423,67734.0,67732.0,0.14764]
[1729837822474,0.08838423,67734.0,67731.0,0.295282]
[1729837822671,0.08838423,67734.0,67732.0,0.14764]
[1729837824164,0.08838423,67734.0,67730.0,0.18399991]
[1729837824378,0.25151528,67734.0,67731.0,0.295285]
[1729837824602,0.08838423,67734.0,67733.0,0.147638]
[1729837824804,0.08838423,67734.0,67731.0,0.147642]
[1729837825006,0.23602023,67734.0,67730.0,0.33164391]
[1729837825215,0.16311527,67733.0,67731.0,0.147642]
[1729837825391,0.06628371,67732.0,67731.0,0.147642]
[1729837827206,0.06628371,67732.0,67730.0,0.18399991]
[1729837827436,0.06628371,67732.0,67730.0,0.33164191]
[1729837828078,0.06628371,67732.0,67731.0,0.147642]
[1729837829803,0.06628371,67732.0,67731.0,0.148466]
[1729837831271,0.06628371,67732.0,67731.0,0.000824]
[1729837831904,0.06628371,67732.0,67731.0,0.148466]
[1729837832814,0.06628371,67732.0,67731.0,0.000824]
[1729837841025,0.06628708,67732.0,67731.0,0.000824]
[1729837842896,0.21392708,67732.0,67731.0,0.000824]
[1729837843218,0.4079659,67732.0,67731.0,0.000824]
[1729837849032,0.4078034,67732.0,67731.0,0.000824]
[1729837850609,0.40780015,67732.0,67731.0,0.000824]
[1729837852785,0.40776524,67732.0,67731.0,0.000824]
[1729837854551,0.5180932,67732.0,67731.0,0.000824]
[1729837856373,0.4208932,67732.0,67731.0,0.000824]
[1729837860671,0.4208147,67732.0,67731.0,0.000824]
[1729837861099,0.442927,67731.0,67725.0,0.147655]
[1729837861318,0.04412009,67727.0,67725.0,0.147655]
[1729837861554,0.06618014,67729.0,67727.0,0.147651]
[1729837861555,0.04412009,67728.0,67727.0,0.147651]
[1729837861803,0.04412009,67728.0,67727.0,0.225751]
[1729837862060,0.04412009,67729.0,67728.0,0.147649]
[1729837862313,0.04412009,67729.0,67728.0,0.42965272]
[1729837862778,0.04412009,67730.0,67729.0,0.325647]
[1729837863391,0.04576809,67733.0,67729.0,0.0999]
[1729837863608,0.04576809,67733.0,67731.0,0.25164372]
[1729837864522,0.04577314,67733.0,67732.0,0.14764]
[1729837864739,0.04577314,67733.0,67732.0,0.22574]
[1729837864969,0.001648,67733.0,67732.0,0.32564]
[1729837865408,0.001648,67733.0,67732.0,0.65004559]
[1729837865675,0.001648,67733.0,67732.0,0.42964372]
[1729837867097,0.001648,67733.0,67732.0,0.32564]
[1729837870152,0.001648,67733.0,67732.0,0.44018765]
[1729837870261,0.001648,67733.0,67732.0,0.33618393]
[1729837870510,0.001648,67733.0,67732.0,0.44018765]
[1729837872458,0.001648,67733.0,67732.0,0.33618393]
[1729837872701,0.001648,67733.0,67732.0,0.44018765]
[1729837885452,0.001648,67733.0,67732.0,0.23628393]
[1729837904408,0.001648,67733.0,67732.0,0.23628393]
[1729837906696,0.001648,67733.0,67732.0,0.44284007]
[1729837906894,0.001648,67733.0,67732.0,0.43988765]
[1729837907474,0.001648,67733.0,67732.0,0.59039146]
[1729837916161,0.001648,67733.0,67732.0,0.59500658]
[1729837919819,0.001648,67733.0,67732.0,0.59500657]
[1729837920235,0.001648,67733.0,67732.0,0.60000657]
[1729837920445,0.001648,67733.0,67732.0,0.71000657]
[1729837920654,0.001648,67733.0,67732.0,0.85824418]
[1729837920898,0.001648,67733.0,67732.0,0.71000657]
[1729837921098,0.001648,67733.0,67732.0,0.84453675]
[1729837921936,0.001648,67733.0,67732.0,0.71000657]
[1729837922680,0.001648,67733.0,67732.0,0.77632645]
[1729837923294,0.001648,67733.0,67732.0,0.77171134]
[1729837923506,0.001648,67733.0,67732.0,0.77832595]
[1729837923711,0.001648,67733.0,67732.0,0.77632595]
[1729837923938,0.001648,67733.0,67732.0,0.77631578]
[1729837924490,0.001648,67733.0,67732.0,0.71000607]
[1729837925079,0.001648,67733.0,67732.0,0.71200607]
[1729837925291,0.001648,67733.0,67732.0,0.71000607]
[1729837925519,0.001648,67733.0,67732.0,0.81400979]
[1729837925718,0.001648,67733.0,67732.0,0.71000607]
[1729837926541,0.001648,67733.0,67732.0,0.81400979]
[1729837927203,0.001648,67733.0,67732.0,0.71000607]
[1729837927413,0.001648,67733.0,67732.0,0.81400979]
[1729837927608,0.001648,67733.0,67732.0,0.85819614]
[1729837927854,0.001648,67733.0,67732.0,1.61910594]
[1729837928058,0.001648,67733.0,67732.0,1.51971672]
[1729837928260,0.001648,67733.0,67732.0,1.45343096]
[1729837928669,0.001648,67733.0,67732.0,1.5197002]
[1729837928880,0.001648,67733.0,67732.0,1.62370392]
[1729837929511,0.001648,67733.0,67732.0,1.5197002]
[1729837929731,0.001648,67733.0,67732.0,1.4976056]
[1729837931430,0.001648,67733.0,67732.0,1.60160932]
[1729837931622,0.001648,67733.0,67732.0,1.55743468]
[1729837931794,0.001648,67733.0,67732.0,1.45343096]
[1729837931998,0.001648,67733.0,67732.0,1.55743468]
[1729837932218,0.001648,67733.0,67732.0,1.45343096]
[1729837933567,0.001648,67733.0,67732.0,1.55743468]
[1729837934297,0.001648,67733.0,67732.0,1.55743478]
[1729837937161,0.001648,67733.0,67732.0,2.41141178]
[1729837937780,0.001648,67733.0,67732.0,2.40679718]
[1729837937937,0.001648,67733.0,67732.0,2.41141178]
[1729837940167,0.001648,67733.0,67732.0,2.35345992]
[1729837940364,0.001648,67733.0,67732.0,2.45746364]
[1729837941282,0.001648,67733.0,67732.0,2.50163132]
[1729837941908,0.001648,67733.0,67732.0,2.2925696]
[1729837946318,0.001648,67733.0,67732.0,2.24840192]
[1729837946871,0.001648,67733.0,67732.0,1.4408722]
[1729837947111,0.001648,67733.0,67732.0,1.52219264]
[1729837948233,0.001648,67733.0,67732.0,1.58847611]
[1729837948939,0.001648,67733.0,67732.0,1.5884761]
[1729837950318,0.001648,67733.0,67732.0,1.52219263]
[1729837951722,0.001648,67733.0,67732.0,1.61057059]
[1729837953264,0.001648,67733.0,67732.0,1.52219263]
[1729837956428,0.001648,67733.0,67732.0,2.43014963]
[1729837956632,0.001648,67733.0,67732.0,2.54062208]
[1729837958785,0.001648,67733.0,67732.0,2.31979808]
[1729837960239,0.001648,67733.0,67732.0,2.31518349]
[1729837960454,0.001648,67733.0,67732.0,2.31979808]
[1729837961139,0.001648,67733.0,67732.0,1.74651463]
[1729837961335,0.001648,67733.0,67732.0,1.71696463]
[1729837967223,0.001648,67733.0,67732.0,2.07510563]
[1729837967866,0.001648,67733.0,67732.0,2.07049104]
[1729837968069,0.001648,67733.0,67732.0,1.55264563]
[1729837970291,0.001648,67733.0,67732.0,1.34463819]
[1729837970498,0.001648,67733.0,67732.0,0.56835791]
[1729837970721,0.001648,67733.0,67732.0,0.67236163]
[1729837970922,0.001648,67733.0,67732.0,0.78309468]
[1729837971143,0.001648,67733.0,67732.0,0.78309439]
[1729837972944,0.001648,67733.0,67732.0,0.7784798]
[1729837973146,0.001648,67733.0,67732.0,0.78309458]
[1729837975383,0.001648,67733.0,67732.0,0.7784798]
[1729837975536,0.001648,67733.0,67732.0,0.78309457]
[1729837975743,0.001648,67733.0,67732.0,0.78770934]
[1729837976452,0.001648,67733.0,67732.0,0.78970934]
[1729837976801,0.001648,67733.0,67732.0,0.78770934]
[1729837977553,0.001648,67733.0,67732.0,0.86730934]
[1729837978733,0.001648,67733.0,67732.0,0.86708253]
[1729837980587,0.001648,67733.0,67732.0,0.65904033]
[1729837980814,0.001648,67733.0,67732.0,0.86704777]
[1729837981962,0.001648,67733.0,67732.0,0.46874233]
[1729837982187,0.001648,67733.0,67732.0,0.67674977]
[1729837982406,0.001648,67733.0,67732.0,0.672135]
[1729837983441,0.001648,67733.0,67732.0,0.66752023]
[1729837986096,0.001648,67738.0,67737.0,0.257629]
[1729837986304,0.001648,67738.0,67737.0,0.64562764]
[1729837986496,0.001648,67738.0,67737.0,0.71204052]
[1729837986700,0.001648,67738.0,67737.0,0.71704052]
[1729837988772,0.001648,67738.0,67737.0,0.65040073]
[1729837988974,0.001648,67738.0,67737.0,0.71681102]
[1729837990134,0.001648,67738.0,67737.0,0.6128073]
[1729837990544,0.001648,67738.0,67737.0,0.61280713]
[1729837991275,0.001648,67738.0,67737.0,0.64235713]
[1729837991476,0.001648,67738.0,67737.0,0.61280713]
[1729837994316,0.001648,67738.0,67737.0,0.60819255]
[1729837994511,0.001648,67738.0,67737.0,0.61280714]
[1729837995342,0.001648,67738.0,67737.0,0.60819255]
[1729837998688,0.001648,67738.0,67737.0,0.60796564]
[1729838000996,0.001648,67738.0,67737.0,0.54155535]
[1729838001419,0.001648,67738.0,67737.0,0.58583112]
[1729838001627,0.001648,67738.0,67737.0,0.58665512]
[1729838006907,0.001648,67738.0,67737.0,0.57665512]
[1729838007135,0.098748,67738.0,67737.0,0.57665512]
[1729838007874,0.098748,67738.0,67737.0,0.57665645]
[1729838008795,0.098748,67738.0,67737.0,0.57620262]
[1729838009749,0.001648,67738.0,67737.0,0.57620262]
[1729838012658,0.001648,67738.0,67737.0,0.53192552]
[1729838012873,0.001648,67738.0,67737.0,0.57620363]
[1729838017567,0.001648,67738.0,67737.0,0.57620534]
[1729838018964,0.001648,67738.0,67737.0,0.57575152]
[1729838028883,0.001648,67738.0,67737.0,0.5752977]
[1729838031014,0.001648,67738.0,67737.0,0.57529857]
[1729838032147,0.001648,67738.0,67737.0,0.5752987]
[1729838034315,0.001648,67738.0,67737.0,0.57529949]
[1729838037222,0.001648,67738.0,67737.0,0.57991423]
[1729838038888,0.001648,67738.0,67737.0,0.5794604]
[1729838039307,0.001648,67738.0,67737.0,0.57484566]
[1729838042309,0.001648,67738.0,67737.0,0.53517879]
[1729838042772,0.001648,67738.0,67737.0,0.57946742]
[1729838043334,0.001648,67738.0,67737.0,0.53517879]
[1729838047325,0.001648,67738.0,67737.0,0.57947644]
[1729838047534,0.001648,67738.0,67737.0,0.57947566]
[1729838047740,0.001648,67738.0,67737.0,0.53517879]